[Event "Titled Tuesday Blitz July 18 Late 2023"]
[White "Alboredo, Julia"]
[Black "rikchessmx"]
[WhiteFideId "2124807"]
[WhiteElo "2456"]
[BlackElo "2252"]
[Result "0-1"]
[Round "3"]
[TimeControl "180+2"]
[Date "2023.07.18"]
[WhiteClock "0:00:03"]
[BlackClock "0:00:10"]
[Board "166"]

1. e4 {[%clk 0:03:00]}  c5 {[%clk 0:02:49]} 2. Nf3 {[%clk 0:02:59]}  e6 {[%clk 0:02:50]} 3. b3 {[%clk 0:02:57]}  d5 {[%clk 0:02:49]} 4. exd5 {[%clk 0:02:57]}  exd5 {[%clk 0:02:49]} 5. d4 {[%clk 0:02:57]}  Nc6 {[%clk 0:02:48]} 6. Bb2 {[%clk 0:02:55]}  Nf6 {[%clk 0:02:48]} 7. h3 {[%clk 0:02:52]}  Be7 {[%clk 0:02:47]} 8. Bd3 {[%clk 0:02:51]}  O-O {[%clk 0:02:47]} 9. O-O {[%clk 0:02:51]}  a6 {[%clk 0:02:46]} 10. dxc5 {[%clk 0:02:50]}  Bxc5 {[%clk 0:02:46]} 11. Nc3 {[%clk 0:02:47]}  Be6 {[%clk 0:02:45]} 12. Ne2 {[%clk 0:02:47]}  Qd6 {[%clk 0:02:43]} 13. Ned4 {[%clk 0:02:44]}  Nb4 {[%clk 0:02:40]} 14. Be2 {[%clk 0:02:32]}  Rac8 {[%clk 0:02:36]} 15. a3 {[%clk 0:02:29]}  Nc6 {[%clk 0:02:36]} 16. Bd3 {[%clk 0:02:27]}  Ne4 {[%clk 0:02:31]} 17. Re1 {[%clk 0:02:16]}  Qf4 {[%clk 0:02:18]} 18. Bc1 {[%clk 0:01:59]}  Qf6 {[%clk 0:02:14]} 19. Bb2 {[%clk 0:01:37]}  Qf4 {[%clk 0:02:12]} 20. Qe2 {[%clk 0:01:31]}  Rfe8 {[%clk 0:01:41]} 21. Bxe4 {[%clk 0:01:27]}  dxe4 {[%clk 0:01:40]} 22. Qxe4 {[%clk 0:01:27]}  Qxe4 {[%clk 0:01:40]} 23. Rxe4 {[%clk 0:01:28]}  Bd5 {[%clk 0:01:38]} 24. Rxe8+ {[%clk 0:01:26]}  Rxe8 {[%clk 0:01:38]} 25. Kf1 {[%clk 0:01:16]}  Nxd4 {[%clk 0:01:25]} 26. Bxd4 {[%clk 0:01:02]}  Bf8 {[%clk 0:01:24]} 27. Ne5 {[%clk 0:00:49]}  b5 {[%clk 0:01:13]} 28. a4 {[%clk 0:00:47]}  Rc8 {[%clk 0:01:06]} 29. axb5 {[%clk 0:00:43]}  axb5 {[%clk 0:01:05]} 30. Ra2 {[%clk 0:00:40]}  f6 {[%clk 0:00:54]} 31. Nd3 {[%clk 0:00:39]}  Be4 {[%clk 0:00:43]} 32. Ne1 {[%clk 0:00:31]}  Bb4 {[%clk 0:00:40]} 33. f3 {[%clk 0:00:29]}  Bg6 {[%clk 0:00:36]} 34. Nd3 {[%clk 0:00:23]}  Bxd3+ {[%clk 0:00:27]} 35. cxd3 {[%clk 0:00:23]}  Rd8 {[%clk 0:00:27]} 36. Bb6 {[%clk 0:00:20]}  Rxd3 {[%clk 0:00:26]} 37. Ra8+ {[%clk 0:00:21]}  Kf7 {[%clk 0:00:26]} 38. Ra7+ {[%clk 0:00:21]}  Kg6 {[%clk 0:00:26]} 39. Rb7 {[%clk 0:00:18]}  Rxb3 {[%clk 0:00:25]} 40. Bc7 {[%clk 0:00:18]}  Bc5 {[%clk 0:00:23]} 41. Ba5 {[%clk 0:00:17]}  b4 {[%clk 0:00:23]} 42. Ke2 {[%clk 0:00:15]}  Rb2+ {[%clk 0:00:23]} 43. Kf1 {[%clk 0:00:15]}  b3 {[%clk 0:00:23]} 44. g4 {[%clk 0:00:15]}  Bd4 {[%clk 0:00:21]} 45. Bb4 {[%clk 0:00:13]}  Rb1+ {[%clk 0:00:20]} 46. Kg2 {[%clk 0:00:13]}  b2 {[%clk 0:00:20]} 47. Bf8 {[%clk 0:00:13]}  h5 {[%clk 0:00:17]} 48. Rxg7+ {[%clk 0:00:12]}  Kh6 {[%clk 0:00:17]} 49. Rd7+ {[%clk 0:00:12]}  Kg6 {[%clk 0:00:15]} 50. Rg7+ {[%clk 0:00:13]}  Kh6 {[%clk 0:00:14]} 51. Rd7+ {[%clk 0:00:08]}  Kg6 {[%clk 0:00:14]} 52. Rxd4 {[%clk 0:00:08]}  Rc1 {[%clk 0:00:11]} 53. Rb4 {[%clk 0:00:07]}  b1=Q {[%clk 0:00:11]} 54. Rxb1 {[%clk 0:00:08]}  Rxb1 {[%clk 0:00:12]} 55. Bd6 {[%clk 0:00:07]}  hxg4 {[%clk 0:00:12]} 56. hxg4 {[%clk 0:00:07]}  Rb3 {[%clk 0:00:13]} 57. Kg3 {[%clk 0:00:07]}  Rd3 {[%clk 0:00:13]} 58. Bf4 {[%clk 0:00:08]}  Rd1 {[%clk 0:00:13]} 59. Be3 {[%clk 0:00:08]}  Ra1 {[%clk 0:00:12]} 60. Kf2 {[%clk 0:00:08]}  Ra2+ {[%clk 0:00:13]} 61. Kg3 {[%clk 0:00:08]}  f5 {[%clk 0:00:13]} 62. Bd4 {[%clk 0:00:07]}  fxg4 {[%clk 0:00:13]} 63. fxg4 {[%clk 0:00:07]}  Ra3+ {[%clk 0:00:13]} 64. Kf4 {[%clk 0:00:05]}  Ra4 {[%clk 0:00:13]} 65. Ke5 {[%clk 0:00:05]}  Kg5 {[%clk 0:00:13]} 66. Ke4 {[%clk 0:00:05]}  Kxg4 {[%clk 0:00:13]} 67. Kd5 {[%clk 0:00:06]}  Kf5 {[%clk 0:00:13]} 68. Kc5 {[%clk 0:00:06]}  Ke4 {[%clk 0:00:12]} 69. Bf6 {[%clk 0:00:05]}  Ra2 {[%clk 0:00:11]} 70. Kb4 {[%clk 0:00:04]}  Rc2 {[%clk 0:00:11]} 71. Kb3 {[%clk 0:00:04]}  Rc6 {[%clk 0:00:11]} 72. Bg7 {[%clk 0:00:04]}  Kd3 {[%clk 0:00:12]} 73. Kb4 {[%clk 0:00:04]}  Rg6 {[%clk 0:00:12]} 74. Bf8 {[%clk 0:00:04]}  Ke4 {[%clk 0:00:11]} 75. Bc5 {[%clk 0:00:04]}  Kd5 {[%clk 0:00:12]} 76. Be3 {[%clk 0:00:04]}  Rc6 {[%clk 0:00:12]} 77. Bf2 {[%clk 0:00:03]}  Rc4+ {[%clk 0:00:12]} 78. Kb3 {[%clk 0:00:04]}  Rf4 {[%clk 0:00:12]} 79. Be1 {[%clk 0:00:04]}  Re4 {[%clk 0:00:12]} 80. Ba5 {[%clk 0:00:05]}  Re2 {[%clk 0:00:13]} 81. Kc3 {[%clk 0:00:05]}  Re3+ {[%clk 0:00:12]} 82. Kb4 {[%clk 0:00:05]}  Re2 {[%clk 0:00:10]} 83. Bb6 {[%clk 0:00:05]}  Rb2+ {[%clk 0:00:10]} 84. Ka5 {[%clk 0:00:06]}  Kc4 {[%clk 0:00:10]} 85. Bd8 {[%clk 0:00:05]}  Rb5+ {[%clk 0:00:10]} 86. Ka6 {[%clk 0:00:05]}  Rb2 {[%clk 0:00:10]} 87. Be7 {[%clk 0:00:05]}  Kd5 {[%clk 0:00:10]} 88. Bf8 {[%clk 0:00:05]}  Kc6 {[%clk 0:00:10]} 89. Ka5 {[%clk 0:00:04]}  Rb8 {[%clk 0:00:09]} 90. Be7 {[%clk 0:00:04]}  Re8 {[%clk 0:00:08]} 91. Bb4 {[%clk 0:00:04]}  Kd5 {[%clk 0:00:08]} 92. Ka4 {[%clk 0:00:04]}  Kc4 {[%clk 0:00:08]} 93. Ba5 {[%clk 0:00:02]}  Ra8 {[%clk 0:00:09]} 94. Ka3 {[%clk 0:00:02]}  Rxa5+ {[%clk 0:00:09]} 95. Kb2 {[%clk 0:00:03]}  Rb5+ {[%clk 0:00:10]} 0-1


[Site "https://www.chess.com"]

[Event "Titled Tuesday Blitz July 18 Late 2023"]
[White "De Souza, Cristiano Gomes"]
[Black "Deviprasath, Sharvesh"]
[WhiteFideId "2151758"]
[BlackFideId "30938228"]
[WhiteElo "2234"]
[BlackElo "2446"]
[Result "1-0"]
[Round "3"]
[TimeControl "180+2"]
[Date "2023.07.18"]
[WhiteClock "0:02:04"]
[BlackClock "0:02:04"]
[Board "169"]

1. d4 {[%clk 0:03:00]}  Nf6 {[%clk 0:02:57]} 2. c4 {[%clk 0:03:00]}  e6 {[%clk 0:02:56]} 3. Nf3 {[%clk 0:02:57]}  b6 {[%clk 0:02:56]} 4. g3 {[%clk 0:02:57]}  Ba6 {[%clk 0:02:51]} 5. b3 {[%clk 0:02:56]}  Bb4+ {[%clk 0:02:51]} 6. Bd2 {[%clk 0:02:57]}  Be7 {[%clk 0:02:50]} 7. Bg2 {[%clk 0:02:57]}  Bb7 {[%clk 0:02:49]} 8. Bc3 {[%clk 0:02:57]}  O-O {[%clk 0:02:48]} 9. O-O {[%clk 0:02:56]}  d5 {[%clk 0:02:49]} 10. Ne5 {[%clk 0:02:56]}  Nbd7 {[%clk 0:02:48]} 11. Nd2 {[%clk 0:02:55]}  Nxe5 {[%clk 0:02:47]} 12. dxe5 {[%clk 0:02:55]}  Nd7 {[%clk 0:02:48]} 13. cxd5 {[%clk 0:02:51]}  exd5 {[%clk 0:02:46]} 14. Bb2 {[%clk 0:02:45]}  Re8 {[%clk 0:02:44]} 15. Rc1 {[%clk 0:02:42]}  c5 {[%clk 0:02:41]} 16. Nc4 {[%clk 0:02:39]}  Rb8 {[%clk 0:02:37]} 17. Bxd5 {[%clk 0:02:27]}  Bxd5 {[%clk 0:02:22]} 18. Qxd5 {[%clk 0:02:26]}  Qc8 {[%clk 0:02:23]} 19. Rcd1 {[%clk 0:02:25]}  Nf8 {[%clk 0:02:20]} 20. Nd6 {[%clk 0:02:24]}  Bxd6 {[%clk 0:02:19]} 21. Qxd6 {[%clk 0:02:15]}  Rb7 {[%clk 0:02:10]} 22. Qd5 {[%clk 0:02:09]}  Qh3 {[%clk 0:02:05]} 23. Qxb7 {[%clk 0:02:06]}  Re6 {[%clk 0:02:04]} 24. Qg2 {[%clk 0:02:04]}  Qh5 {[%clk 0:02:04]} 1-0


[Site "https://www.chess.com"]

[Event "Titled Tuesday Blitz July 18 Late 2023"]
[White "SoyuzTM4"]
[Black "Der_Balak_3Halak"]
[WhiteElo "2221"]
[BlackElo "2429"]
[Result "1-0"]
[Round "3"]
[TimeControl "180+2"]
[Date "2023.07.18"]
[WhiteClock "0:01:04"]
[BlackClock "0:00:02"]
[Board "173"]

1. e4 {[%clk 0:03:00]}  b6 {[%clk 0:03:00]} 2. d4 {[%clk 0:03:00]}  Bb7 {[%clk 0:03:01]} 3. Nc3 {[%clk 0:02:59]}  e6 {[%clk 0:03:01]} 4. Nf3 {[%clk 0:02:58]}  Bb4 {[%clk 0:03:00]} 5. Bd3 {[%clk 0:02:57]}  c5 {[%clk 0:02:59]} 6. O-O {[%clk 0:02:56]}  cxd4 {[%clk 0:02:57]} 7. Nxd4 {[%clk 0:02:55]}  Bxc3 {[%clk 0:02:58]} 8. bxc3 {[%clk 0:02:55]}  Ne7 {[%clk 0:02:57]} 9. Ba3 {[%clk 0:02:53]}  Nbc6 {[%clk 0:02:56]} 10. Nb5 {[%clk 0:02:45]}  Nc8 {[%clk 0:02:42]} 11. Qg4 {[%clk 0:02:41]}  g6 {[%clk 0:02:37]} 12. Qg3 {[%clk 0:02:25]}  e5 {[%clk 0:02:31]} 13. Bd6 {[%clk 0:02:10]}  Qf6 {[%clk 0:02:18]} 14. f4 {[%clk 0:01:53]}  Nxd6 {[%clk 0:01:17]} 15. fxe5 {[%clk 0:01:52]}  Qxe5 {[%clk 0:01:16]} 16. Nxd6+ {[%clk 0:01:49]}  Ke7 {[%clk 0:01:15]} 17. Nxb7 {[%clk 0:01:34]}  Qxg3 {[%clk 0:01:00]} 18. hxg3 {[%clk 0:01:33]}  d6 {[%clk 0:00:35]} 19. Bc4 {[%clk 0:01:27]}  Ne5 {[%clk 0:00:33]} 20. Bd5 {[%clk 0:01:26]}  Rab8 {[%clk 0:00:30]} 21. a4 {[%clk 0:01:24]}  f6 {[%clk 0:00:17]} 22. a5 {[%clk 0:01:23]}  Ng4 {[%clk 0:00:13]} 23. axb6 {[%clk 0:01:21]}  axb6 {[%clk 0:00:14]} 24. Ra7 {[%clk 0:01:21]}  Ne3 {[%clk 0:00:14]} 25. Nc5+ {[%clk 0:01:12]}  Ke8 {[%clk 0:00:03]} 26. Bc6+ {[%clk 0:01:05]}  Kf8 {[%clk 0:00:03]} 27. Ne6+ {[%clk 0:01:05]}  Kg8 {[%clk 0:00:02]} 28. Rg7# {[%clk 0:01:04]} 1-0


[Site "https://www.chess.com"]

[Event "Titled Tuesday Blitz July 18 Late 2023"]
[White "Yordanov, Nikolay Plamenov"]
[Black "De Arruda, Leandro Formes"]
[WhiteFideId "2907445"]
[BlackFideId "22722009"]
[WhiteElo "2396"]
[BlackElo "2221"]
[Result "1-0"]
[Round "3"]
[TimeControl "180+2"]
[Date "2023.07.18"]
[WhiteClock "0:01:36"]
[BlackClock "0:00:00"]
[Board "174"]

1. d4 {[%clk 0:03:00]}  d5 {[%clk 0:03:00]} 2. Bf4 {[%clk 0:03:00]}  Nf6 {[%clk 0:03:00]} 3. e3 {[%clk 0:03:00]}  e6 {[%clk 0:03:01]} 4. Nf3 {[%clk 0:03:01]}  Bd6 {[%clk 0:03:02]} 5. Bxd6 {[%clk 0:03:01]}  Qxd6 {[%clk 0:03:03]} 6. c4 {[%clk 0:03:01]}  c6 {[%clk 0:03:03]} 7. Nc3 {[%clk 0:03:02]}  Nbd7 {[%clk 0:03:03]} 8. Bd3 {[%clk 0:03:02]}  O-O {[%clk 0:03:03]} 9. O-O {[%clk 0:03:02]}  Re8 {[%clk 0:03:04]} 10. e4 {[%clk 0:02:59]}  e5 {[%clk 0:03:04]} 11. dxe5 {[%clk 0:02:54]}  Nxe5 {[%clk 0:03:05]} 12. exd5 {[%clk 0:02:50]}  cxd5 {[%clk 0:03:00]} 13. cxd5 {[%clk 0:02:45]}  Bg4 {[%clk 0:02:54]} 14. Be2 {[%clk 0:02:43]}  Rad8 {[%clk 0:02:51]} 15. Nxe5 {[%clk 0:02:43]}  Bxe2 {[%clk 0:02:47]} 16. Qxe2 {[%clk 0:02:25]}  Rxe5 {[%clk 0:02:44]} 17. Qf3 {[%clk 0:02:25]}  Qb4 {[%clk 0:02:37]} 18. Rae1 {[%clk 0:02:19]}  Rxe1 {[%clk 0:02:31]} 19. Rxe1 {[%clk 0:02:20]}  Qxb2 {[%clk 0:02:30]} 20. h3 {[%clk 0:02:02]}  h6 {[%clk 0:01:49]} 21. Rb1 {[%clk 0:01:53]}  Qa3 {[%clk 0:01:15]} 22. Rxb7 {[%clk 0:01:52]}  Qc1+ {[%clk 0:01:14]} 23. Kh2 {[%clk 0:01:50]}  a5 {[%clk 0:01:11]} 24. Ne4 {[%clk 0:01:43]}  Rf8 {[%clk 0:00:10]} 25. Nxf6+ {[%clk 0:01:40]}  gxf6 {[%clk 0:00:11]} 26. Qxf6 {[%clk 0:01:40]}  Qd2 {[%clk 0:00:08]} 27. Rb3 {[%clk 0:01:37]}  Kh7 {[%clk 0:00:00]} 28. Rg3 {[%clk 0:01:36]} 1-0


[Site "https://www.chess.com"]

[Event "Titled Tuesday Blitz July 18 Late 2023"]
[White "Jonkman, Harmen"]
[Black "Ishowmoves57"]
[WhiteFideId "1002708"]
[WhiteElo "2392"]
[BlackElo "2155"]
[Result "1-0"]
[Round "3"]
[TimeControl "180+2"]
[Date "2023.07.18"]
[WhiteClock "0:01:04"]
[BlackClock "0:00:34"]
[Board "178"]

1. d4 {[%clk 0:02:59]}  Nf6 {[%clk 0:02:59]} 2. Nf3 {[%clk 0:03:00]}  d5 {[%clk 0:02:59]} 3. Bf4 {[%clk 0:03:00]}  e6 {[%clk 0:02:59]} 4. e3 {[%clk 0:03:01]}  Bd6 {[%clk 0:03:00]} 5. Nbd2 {[%clk 0:03:01]}  O-O {[%clk 0:02:57]} 6. Bd3 {[%clk 0:03:01]}  c5 {[%clk 0:02:57]} 7. dxc5 {[%clk 0:02:58]}  Bxc5 {[%clk 0:02:56]} 8. O-O {[%clk 0:02:58]}  Nc6 {[%clk 0:02:49]} 9. c4 {[%clk 0:02:56]}  Bd6 {[%clk 0:02:41]} 10. Bg5 {[%clk 0:02:52]}  h6 {[%clk 0:02:40]} 11. Bh4 {[%clk 0:02:47]}  Ne5 {[%clk 0:02:33]} 12. Be2 {[%clk 0:02:41]}  Nxc4 {[%clk 0:02:22]} 13. Nxc4 {[%clk 0:02:40]}  dxc4 {[%clk 0:02:22]} 14. Bxc4 {[%clk 0:02:40]}  Be7 {[%clk 0:02:22]} 15. Qe2 {[%clk 0:02:37]}  Bd7 {[%clk 0:02:20]} 16. Rfd1 {[%clk 0:02:36]}  Qc8 {[%clk 0:02:14]} 17. Rac1 {[%clk 0:02:35]}  Bc6 {[%clk 0:02:15]} 18. Ne5 {[%clk 0:02:33]}  Nd5 {[%clk 0:02:08]} 19. Nxc6 {[%clk 0:02:27]}  Bxh4 {[%clk 0:01:57]} 20. Bxd5 {[%clk 0:02:23]}  exd5 {[%clk 0:01:45]} 21. Ne7+ {[%clk 0:02:17]}  Bxe7 {[%clk 0:01:44]} 22. Rxc8 {[%clk 0:02:17]}  Raxc8 {[%clk 0:01:44]} 23. g3 {[%clk 0:01:39]}  Rfd8 {[%clk 0:01:40]} 24. Qb5 {[%clk 0:01:35]}  b6 {[%clk 0:01:19]} 25. Rxd5 {[%clk 0:01:32]}  Rxd5 {[%clk 0:01:18]} 26. Qxd5 {[%clk 0:01:32]}  Bf6 {[%clk 0:01:17]} 27. b3 {[%clk 0:01:27]}  Rc7 {[%clk 0:00:51]} 28. Kg2 {[%clk 0:01:22]}  g6 {[%clk 0:00:51]} 29. e4 {[%clk 0:01:21]}  Rc2 {[%clk 0:00:47]} 30. e5 {[%clk 0:01:19]}  Be7 {[%clk 0:00:46]} 31. e6 {[%clk 0:01:06]}  fxe6 {[%clk 0:00:41]} 32. Qxe6+ {[%clk 0:01:05]}  Kf8 {[%clk 0:00:39]} 33. Qxg6 {[%clk 0:01:04]}  Bc5 {[%clk 0:00:34]} 34. Qxc2 {[%clk 0:01:04]} 1-0


[Site "https://www.chess.com"]

[Event "Titled Tuesday Blitz July 18 Late 2023"]
[White "Vanek, Tomas"]
[Black "Hoffmann, Asa"]
[WhiteFideId "313459"]
[BlackFideId "2001470"]
[WhiteElo "2152"]
[BlackElo "2391"]
[Result "1-0"]
[Round "3"]
[TimeControl "180+2"]
[Date "2023.07.18"]
[WhiteClock "0:00:15"]
[BlackClock "0:00:00"]
[Board "179"]

1. d4 {[%clk 0:03:00]}  Nf6 {[%clk 0:02:59]} 2. Bf4 {[%clk 0:02:59]}  d6 {[%clk 0:02:56]} 3. Nc3 {[%clk 0:02:57]}  Bf5 {[%clk 0:02:54]} 4. f3 {[%clk 0:02:52]}  Nbd7 {[%clk 0:02:53]} 5. e4 {[%clk 0:02:51]}  Bg6 {[%clk 0:02:53]} 6. Bg3 {[%clk 0:02:42]}  e5 {[%clk 0:02:50]} 7. d5 {[%clk 0:02:42]}  Be7 {[%clk 0:02:49]} 8. Bb5 {[%clk 0:02:20]}  O-O {[%clk 0:02:40]} 9. Bf2 {[%clk 0:02:17]}  Ne8 {[%clk 0:02:37]} 10. g4 {[%clk 0:02:15]}  Bh4 {[%clk 0:02:32]} 11. Qd2 {[%clk 0:02:13]}  a6 {[%clk 0:02:25]} 12. Bxd7 {[%clk 0:02:00]}  Bxf2+ {[%clk 0:02:24]} 13. Kxf2 {[%clk 0:01:54]}  Qxd7 {[%clk 0:02:24]} 14. h4 {[%clk 0:01:52]}  h5 {[%clk 0:02:23]} 15. Qg5 {[%clk 0:01:39]}  Nf6 {[%clk 0:02:12]} 16. Kg3 {[%clk 0:01:14]}  c6 {[%clk 0:02:06]} 17. Rd1 {[%clk 0:00:59]}  Rac8 {[%clk 0:02:01]} 18. Nge2 {[%clk 0:00:50]}  cxd5 {[%clk 0:01:58]} 19. Nxd5 {[%clk 0:00:38]}  Nxd5 {[%clk 0:01:48]} 20. Rxd5 {[%clk 0:00:37]}  Rxc2 {[%clk 0:01:46]} 21. Nc3 {[%clk 0:00:37]}  Qd8 {[%clk 0:01:03]} 22. gxh5 {[%clk 0:00:33]}  Bh7 {[%clk 0:00:56]} 23. h6 {[%clk 0:00:22]}  g6 {[%clk 0:00:49]} 24. Qxd8 {[%clk 0:00:22]}  Rxd8 {[%clk 0:00:48]} 25. Rhd1 {[%clk 0:00:22]}  Rxb2 {[%clk 0:00:40]} 26. Rxd6 {[%clk 0:00:21]}  Rxd6 {[%clk 0:00:40]} 27. Rxd6 {[%clk 0:00:21]}  f5 {[%clk 0:00:34]} 28. Rd8+ {[%clk 0:00:18]}  Kf7 {[%clk 0:00:34]} 29. Rd7+ {[%clk 0:00:18]}  Kg8 {[%clk 0:00:33]} 30. Nd5 {[%clk 0:00:18]}  g5 {[%clk 0:00:15]} 31. Nf6+ {[%clk 0:00:17]}  Kf8 {[%clk 0:00:15]} 32. Nxh7+ {[%clk 0:00:17]}  Ke8 {[%clk 0:00:15]} 33. Nf6+ {[%clk 0:00:17]}  Kf8 {[%clk 0:00:15]} 34. hxg5 {[%clk 0:00:16]}  f4+ {[%clk 0:00:15]} 35. Kg4 {[%clk 0:00:16]}  Rh2 {[%clk 0:00:14]} 36. Kf5 {[%clk 0:00:16]}  b5 {[%clk 0:00:00]} 37. Ke6 {[%clk 0:00:15]} 1-0


[Site "https://www.chess.com"]

[Event "Titled Tuesday Blitz July 18 Late 2023"]
[White "Ilyuchyk, Yana"]
[Black "Eggleston, Thomas A"]
[WhiteFideId "13508407"]
[BlackFideId "412139"]
[WhiteElo "2140"]
[BlackElo "2378"]
[Result "1-0"]
[Round "3"]
[TimeControl "180+2"]
[Date "2023.07.18"]
[WhiteClock "0:00:05"]
[BlackClock "0:00:30"]
[Board "181"]

1. e4 {[%clk 0:03:00]}  e6 {[%clk 0:03:00]} 2. d4 {[%clk 0:03:00]}  d5 {[%clk 0:03:00]} 3. exd5 {[%clk 0:02:59]}  exd5 {[%clk 0:03:01]} 4. Nf3 {[%clk 0:02:59]}  Nf6 {[%clk 0:03:01]} 5. Bd3 {[%clk 0:03:00]}  c5 {[%clk 0:03:01]} 6. O-O {[%clk 0:02:59]}  c4 {[%clk 0:02:53]} 7. Re1+ {[%clk 0:03:00]}  Be7 {[%clk 0:02:52]} 8. Bf1 {[%clk 0:03:00]}  O-O {[%clk 0:02:52]} 9. b3 {[%clk 0:03:01]}  cxb3 {[%clk 0:02:47]} 10. axb3 {[%clk 0:03:00]}  Nc6 {[%clk 0:02:48]} 11. Bf4 {[%clk 0:02:55]}  Bg4 {[%clk 0:02:47]} 12. c3 {[%clk 0:02:52]}  Ne4 {[%clk 0:02:46]} 13. h3 {[%clk 0:02:44]}  Bh5 {[%clk 0:02:46]} 14. g4 {[%clk 0:02:38]}  Bg6 {[%clk 0:02:45]} 15. Bd3 {[%clk 0:02:37]}  Bd6 {[%clk 0:02:44]} 16. Bxd6 {[%clk 0:02:04]}  Qxd6 {[%clk 0:02:43]} 17. c4 {[%clk 0:02:00]}  Nb4 {[%clk 0:02:39]} 18. Ne5 {[%clk 0:01:33]}  Nxd3 {[%clk 0:02:31]} 19. Qxd3 {[%clk 0:01:26]}  Nxf2 {[%clk 0:02:24]} 20. Qf3 {[%clk 0:01:10]}  Ne4 {[%clk 0:02:21]} 21. c5 {[%clk 0:01:05]}  Qc7 {[%clk 0:02:09]} 22. Nc3 {[%clk 0:01:01]}  Nxc3 {[%clk 0:02:02]} 23. Qxc3 {[%clk 0:01:02]}  Be4 {[%clk 0:02:02]} 24. b4 {[%clk 0:00:49]}  f6 {[%clk 0:02:02]} 25. Nc4 {[%clk 0:00:33]}  h5 {[%clk 0:01:33]} 26. Nd6 {[%clk 0:00:30]}  Bg6 {[%clk 0:01:21]} 27. Qf3 {[%clk 0:00:25]}  hxg4 {[%clk 0:01:02]} 28. Qxg4 {[%clk 0:00:20]}  Bf7 {[%clk 0:01:01]} 29. Nf5 {[%clk 0:00:13]}  g5 {[%clk 0:00:58]} 30. Re7 {[%clk 0:00:10]}  Qd8 {[%clk 0:00:57]} 31. Rae1 {[%clk 0:00:07]}  Bg6 {[%clk 0:00:53]} 32. Nh6+ {[%clk 0:00:07]}  Kh8 {[%clk 0:00:53]} 33. Rd7 {[%clk 0:00:05]}  Qc8 {[%clk 0:00:45]} 34. Ree7 {[%clk 0:00:05]}  a5 {[%clk 0:00:40]} 35. Qh5 {[%clk 0:00:05]}  Qxd7 {[%clk 0:00:36]} 36. Nf7+ {[%clk 0:00:04]}  Kg7 {[%clk 0:00:31]} 37. Qh6+ {[%clk 0:00:04]}  Kg8 {[%clk 0:00:30]} 38. Qxg6# {[%clk 0:00:05]} 1-0


[Site "https://www.chess.com"]

[Event "Titled Tuesday Blitz July 18 Late 2023"]
[White "Romero Ruscalleda, Josep"]
[Black "Feliz Dotel, Dewar Bienvenido"]
[WhiteFideId "2231859"]
[BlackFideId "6402801"]
[WhiteElo "2363"]
[BlackElo "2070"]
[Result "1-0"]
[Round "3"]
[TimeControl "180+2"]
[Date "2023.07.18"]
[WhiteClock "0:00:09"]
[BlackClock "0:00:00"]
[Board "185"]

1. e4 {[%clk 0:03:00]}  e5 {[%clk 0:02:59]} 2. Nf3 {[%clk 0:03:00]}  Nc6 {[%clk 0:02:58]} 3. Bc4 {[%clk 0:03:00]}  Nf6 {[%clk 0:02:57]} 4. d4 {[%clk 0:03:00]}  exd4 {[%clk 0:02:56]} 5. e5 {[%clk 0:03:00]}  d5 {[%clk 0:02:56]} 6. Bb5 {[%clk 0:03:00]}  Ne4 {[%clk 0:02:55]} 7. Nxd4 {[%clk 0:03:00]}  Bd7 {[%clk 0:02:54]} 8. Bxc6 {[%clk 0:03:00]}  bxc6 {[%clk 0:02:55]} 9. O-O {[%clk 0:03:00]}  Bc5 {[%clk 0:02:52]} 10. Be3 {[%clk 0:02:59]}  O-O {[%clk 0:02:47]} 11. Nd2 {[%clk 0:02:58]}  Nxd2 {[%clk 0:02:43]} 12. Qxd2 {[%clk 0:02:58]}  f6 {[%clk 0:02:39]} 13. exf6 {[%clk 0:02:40]}  Qxf6 {[%clk 0:02:38]} 14. c3 {[%clk 0:02:34]}  Rae8 {[%clk 0:02:34]} 15. a4 {[%clk 0:02:29]}  Qg6 {[%clk 0:02:23]} 16. Kh1 {[%clk 0:02:21]}  Re4 {[%clk 0:02:14]} 17. b4 {[%clk 0:02:13]}  Bd6 {[%clk 0:02:14]} 18. Rae1 {[%clk 0:01:43]}  Qh5 {[%clk 0:01:58]} 19. f4 {[%clk 0:01:36]}  Rf6 {[%clk 0:01:39]} 20. g3 {[%clk 0:01:35]}  Bh3 {[%clk 0:01:35]} 21. Rg1 {[%clk 0:01:25]}  c5 {[%clk 0:01:31]} 22. bxc5 {[%clk 0:01:23]}  Bxc5 {[%clk 0:01:32]} 23. Qf2 {[%clk 0:01:17]}  Rf8 {[%clk 0:01:14]} 24. Nc2 {[%clk 0:00:32]}  Rfe8 {[%clk 0:00:57]} 25. Bxc5 {[%clk 0:00:31]}  Rxe1 {[%clk 0:00:54]} 26. Rxe1 {[%clk 0:00:31]}  Rxe1+ {[%clk 0:00:52]} 27. Nxe1 {[%clk 0:00:31]}  Qf5 {[%clk 0:00:44]} 28. Bxa7 {[%clk 0:00:28]}  Qe4+ {[%clk 0:00:34]} 29. Kg1 {[%clk 0:00:28]}  Qxa4 {[%clk 0:00:34]} 30. Qe3 {[%clk 0:00:25]}  h6 {[%clk 0:00:28]} 31. Bd4 {[%clk 0:00:24]}  Qd1 {[%clk 0:00:19]} 32. Qe5 {[%clk 0:00:20]}  Qg4 {[%clk 0:00:16]} 33. Nf3 {[%clk 0:00:17]}  c5 {[%clk 0:00:13]} 34. Qxd5+ {[%clk 0:00:16]}  Kh7 {[%clk 0:00:12]} 35. Bxc5 {[%clk 0:00:15]}  Qc8 {[%clk 0:00:08]} 36. Bd4 {[%clk 0:00:14]}  Bg4 {[%clk 0:00:08]} 37. Qe4+ {[%clk 0:00:11]}  Kh8 {[%clk 0:00:07]} 38. Ne5 {[%clk 0:00:10]}  Qb8 {[%clk 0:00:04]} 39. Nxg4 {[%clk 0:00:09]}  Qb1+ {[%clk 0:00:00]} 40. Qxb1 {[%clk 0:00:09]} 1-0


[Site "https://www.chess.com"]